bitfinex-derivatives/quotes_ETHF0:USTF0_20250927
["timestamp","ask_amount","ask_price","bid_price","bid_amount"]
[1759000060422,0.76006952,3995.6,3995.5,3.04938012]
[1759000061028,0.00221918,3995.6,3995.5,3.04938012]
[1759000061524,0.54146567,3995.6,3995.5,3.04938012]
[1759000061727,0.54146333,3995.6,3995.5,3.04938012]
[1759000062026,0.54146567,3995.6,3995.5,3.04938012]
[1759000063525,0.54145576,3995.6,3995.5,3.04938012]
[1759000063728,0.54145799,3995.6,3995.5,3.04938012]
[1759000064025,0.00221918,3995.6,3995.5,3.04938012]
[1759000064226,0.54145632,3995.6,3995.5,3.04938012]
[1759000064725,0.54145554,3995.6,3995.5,3.04938012]
[1759000065129,0.54145554,3995.6,3995.5,2.79838012]
[1759000065327,0.54145554,3995.6,3995.5,3.04938012]
[1759000065725,0.54145554,3995.6,3995.5,2.79838012]
[1759000065926,0.54145554,3995.6,3995.5,3.04938012]
[1759000066629,0.00221918,3995.6,3995.5,3.04938012]
[1759000067425,0.54146531,3995.6,3995.5,3.04938012]
[1759000081445,0.35872758,3995.6,3995.5,3.04938012]
[1759000081646,3.2078,3996.2,3996.1,0.89498]
[1759000081843,3.2078,3996.2,3996.1,2.93129592]
[1759000082447,3.20970845,3996.2,3996.1,2.93129592]
[1759000083448,3.73410845,3996.2,3996.1,2.93129592]
[1759000084350,3.20970845,3996.2,3996.1,2.93129592]
[1759000086344,3.52720845,3996.2,3996.1,2.93129592]
[1759000087249,0.52630845,3996.2,3996.1,2.93129592]
[1759000093758,1.06323641,3996.2,3996.1,2.93129592]
[1759000099750,0.74573641,3996.2,3996.1,2.93129592]
[1759000100450,0.53883641,3996.2,3996.1,4.38201184]
[1759000100650,0.00190845,3996.2,3996.1,4.38201184]
[1759000100851,0.00190845,3996.2,3996.1,2.93129592]
[1759000103562,0.00190845,3996.2,3996.1,9.38201184]
[1759000107268,0.00190845,3996.2,3996.1,7.93129592]
[1759000110565,0.00190845,3996.2,3996.1,8.28748092]
[1759000116466,0.00190845,3996.2,3996.1,8.03648092]
[1759000116666,0.00190845,3996.2,3996.1,8.28748092]
[1759000117966,0.00190845,3996.2,3996.1,8.03648092]
[1759000118167,0.00190845,3996.2,3996.1,8.28748092]
[1759000119470,0.00190845,3996.2,3996.1,3.28748092]
[1759000120263,0.3121,3997.1,3996.1,3.28748092]
[1759000120466,0.4402,3997.8,3997.7,0.98669]
[1759000120763,0.97582941,3997.8,3997.7,0.7877]
[1759000121462,0.97805292,3997.8,3997.7,0.5617]
[1759000122465,1.29015292,3997.8,3997.7,0.5617]
[1759000124368,1.29015292,3997.8,3997.7,0.251]
[1759000125461,1.29015292,3997.8,3997.4,0.3107]
[1759000125666,0.4402,3997.1,3997.0,0.8911]
[1759000125874,0.7523,3997.1,3997.0,2.94900092]
[1759000126466,1.28770672,3997.1,3997.0,2.94900092]
[1759000126969,1.28770672,3997.1,3997.0,1.1421]
[1759000132573,1.28770672,3997.1,3997.0,1.0149]
[1759000132866,1.28770672,3997.1,3997.0,0.7877]
[1759000133078,1.28770672,3997.1,3997.0,1.1489]
[1759000137276,1.28770672,3997.1,3997.0,1.59898]
[1759000137878,1.73777672,3997.1,3997.0,1.59898]
[1759000144078,1.73777672,3997.1,3997.0,1.34798]
[1759000144302,1.73777672,3997.1,3997.0,1.59898]
[1759000144682,0.97560672,3997.1,3997.0,1.59898]
[1759000144889,0.97560672,3997.1,3997.0,3.40588092]
[1759000145985,1.42567672,3997.1,3997.0,3.40588092]
[1759000148083,0.76240672,3997.1,3997.0,3.40588092]
[1759000148481,1.21247672,3997.1,3997.0,3.40588092]
[1759000148982,0.98547672,3997.1,3997.0,3.40588092]
[1759000149296,0.53540672,3997.1,3997.0,3.40588092]
[1759000150391,0.53540672,3997.1,3997.0,3.15488092]
[1759000150685,0.53540672,3997.1,3997.0,3.40588092]
[1759000152996,0.53540672,3997.1,3997.0,3.15488092]
[1759000153188,0.53540672,3997.1,3997.0,3.40588092]
[1759000154183,0.53540672,3997.1,3997.0,3.15488092]
[1759000154382,0.53540672,3997.1,3997.0,3.40588092]
[1759000159701,0.53540672,3997.1,3997.0,3.15488092]
[1759000159901,0.53540672,3997.1,3997.0,3.40588092]
[1759000170607,0.53540672,3997.1,3997.0,3.04851779]
[1759000182018,1.30380672,3997.1,3997.0,1.59898]
[1759000182218,1.30380672,3997.1,3997.0,3.04851779]
[1759000183017,0.98120672,3997.1,3997.0,3.04851779]
[1759000187422,0.75350672,3997.1,3997.0,3.04851779]
[1759000196430,0.53540672,3997.1,3997.0,3.04851779]
[1759000211137,0.98547672,3997.1,3997.0,3.04851779]
[1759000211329,1.77457672,3997.1,3997.0,0.8979]
[1759000211530,1.77457672,3997.1,3997.0,1.0143]
[1759000214536,1.77457672,3997.1,3997.0,0.7633]
[1759000214738,1.77457672,3997.1,3997.0,1.0143]
[1759000215039,1.77457672,3997.1,3997.0,0.7633]
[1759000215236,1.77457672,3997.1,3997.0,1.0143]
[1759000216840,1.77457672,3997.1,3997.0,1.46438]
[1759000217942,1.77457672,3997.1,3997.0,1.58898]
[1759000219842,1.32450672,3997.1,3997.0,1.58898]
[1759000221643,1.32450672,3997.1,3997.0,1.33798]
[1759000221846,1.32450672,3997.1,3997.0,3.03851779]
[1759000223646,0.98290672,3997.1,3997.0,3.03851779]
[1759000225847,0.53540672,3997.1,3997.0,3.03851779]
[1759000231853,0.53540672,3997.1,3997.0,2.58843779]
[1759000232051,0.53540672,3997.1,3997.0,3.03851779]
[1759000232556,0.53540672,3997.1,3997.0,3.395498]
[1759000232758,0.53540672,3997.1,3997.0,3.144498]
[1759000232951,1.28710672,3997.1,3997.0,3.144498]
[1759000233150,1.28710672,3997.1,3997.0,3.395498]
[1759000234162,0.95230672,3997.1,3997.0,3.395498]
[1759000238165,0.74590672,3997.1,3997.0,3.395498]
[1759000239263,0.74590672,3997.1,3997.0,3.144498]
[1759000239459,0.74590672,3997.1,3997.0,3.395498]
[1759000239761,0.53540672,3997.1,3997.0,3.395498]
[1759000256274,0.53540672,3997.1,3997.0,2.945418]
[1759000264081,0.53540672,3997.1,3997.0,2.694418]
[1759000264288,0.53540672,3997.1,3997.0,2.945418]
[1759000270279,0.98547672,3997.1,3997.0,2.945418]
[1759000270483,1.19487672,3997.1,3997.0,2.945418]
[1759000271380,0.87882,3996.6,3996.5,4.09]
[1759000271581,1.73362672,3996.6,3996.5,1.1332]
[1759000272794,1.28350672,3996.6,3996.5,1.1332]
[1759000272994,0.96410672,3996.6,3996.5,1.1332]
[1759000281508,1.41422672,3996.6,3996.5,1.1332]
[1759000282091,1.73362672,3996.6,3996.5,1.1332]
[1759000290312,1.73362672,3996.6,3996.5,1.58333]
[1759000291311,1.73362672,3996.6,3996.5,0.8822]
[1759000291514,1.73362672,3996.6,3996.5,0.575]
[1759000292710,1.73362672,3996.6,3996.0,1.936818]
[1759000292910,1.22787,3996.2,3996.1,1.24228]
[1759000293314,1.22787,3996.2,3996.1,1.44808]
[1759000294208,1.22787,3996.2,3996.1,0.7469]
[1759000294411,1.76680639,3996.2,3996.1,0.9979]
[1759000300817,1.76680639,3996.2,3996.1,1.44808]
[1759000304816,1.31663639,3996.2,3996.1,1.44808]
[1759000305411,0.4423,3995.9,3995.8,2.44188859]
[1759000305718,1.31663639,3995.9,3995.8,2.24267859]
[1759000305922,1.31663639,3995.9,3995.8,2.44847859]
[1759000306318,1.76683639,3995.9,3995.8,2.44847859]
[1759000307143,1.76683639,3995.9,3995.8,2.89868859]
[1759000307820,1.76683639,3995.9,3995.8,2.69288859]
[1759000308518,1.76683639,3995.9,3995.8,2.89868859]
[1759000309019,1.31663639,3995.9,3995.8,2.89868859]
[1759000312827,1.76683639,3995.9,3995.8,2.89868859]
[1759000313921,1.76683639,3995.9,3995.8,0.3149]
[1759000314127,1.76683639,3995.9,3995.8,0.5659]
[1759000314325,1.76683639,3995.9,3995.8,0.251]
[1759000314530,0.89823,3995.7,3995.6,0.3305]
[1759000314733,4.98276639,3995.7,3995.6,0.5815]
[1759000315130,4.98276639,3995.7,3995.6,0.7981]
[1759000320528,4.98276639,3995.7,3995.6,1.24834]
[1759000320926,4.98276639,3995.7,3995.6,0.7981]
[1759000321433,4.98276639,3995.7,3995.6,0.5471]
[1759000321628,4.98276639,3995.7,3995.6,0.7981]
[1759000322228,1.23604,3995.6,3995.5,0.0026142]
[1759000322430,1.77497639,3995.6,3995.5,0.5841142]
[1759000323034,4.98277639,3995.6,3995.5,0.5841142]
[1759000323334,4.98277639,3995.6,3995.5,0.8007142]
[1759000328839,4.98277639,3995.6,3995.5,1.2509642]
[1759000329352,4.98277639,3995.6,3995.5,0.8007142]
[1759000333154,4.98277639,3995.6,3995.5,0.5497142]
[1759000333342,4.98277639,3995.6,3995.5,0.8007142]
[1759000334945,4.53253639,3995.6,3995.5,1.2509642]
[1759000337650,1.32473639,3995.6,3995.5,1.2509642]
[1759000341454,1.77497639,3995.6,3995.5,1.2509642]
[1759000343061,1.32473639,3995.6,3995.5,1.2509642]
[1759000343354,0.98693639,3995.6,3995.5,1.6034642]
[1759000343555,0.76153639,3995.6,3995.5,1.6034642]
[1759000346552,1.07663639,3995.6,3995.5,1.6034642]
[1759000347155,1.07663639,3995.6,3995.5,1.3524642]
[1759000347355,0.53893639,3995.6,3995.5,1.6034642]
[1759000349661,0.75623639,3995.6,3995.5,1.6034642]
[1759000350861,0.2173,3995.6,3995.5,1.6034642]
[1759000352264,0.75748682,3995.6,3995.5,1.6034642]
[1759000352451,0.2173,3995.6,3995.5,1.6034642]
[1759000352763,0.2173,3995.6,3995.5,1.3524642]
[1759000352959,0.2173,3995.6,3995.5,1.6034642]
[1759000353161,0.7458,3995.6,3995.5,3.05404279]
[1759000353457,0.7458,3995.6,3995.5,0.9022142]
[1759000353664,1.19604,3995.6,3995.5,0.3331142]
[1759000354058,1.19604,3995.6,3995.5,0.0026142]
[1759000354263,1.73624014,3995.6,3995.5,0.0026142]
[1759000354456,0.54020014,3995.6,3995.5,0.8853142]
[1759000354661,0.54020014,3995.6,3995.5,2.69261331]
[1759000355157,3.4251,3996.1,3996.0,0.3419]
[1759000355364,3.4251,3996.1,3996.0,1.58389]
[1759000358366,3.7402,3996.1,3996.0,1.58389]
[1759000359963,3.9536,3996.1,3996.0,1.58389]
[1759000360366,3.4251,3996.5,3996.4,1.20375]
[1759000363375,3.7402,3996.5,3996.4,1.45475]
[1759000364577,3.4251,3996.5,3996.4,1.45475]
[1759000365980,4.28171687,3996.5,3996.4,1.45475]
[1759000366573,4.49511687,3996.5,3996.4,1.45475]
[1759000366972,4.49511687,3996.5,3996.4,1.20375]
[1759000367172,4.49511687,3996.5,3996.4,1.45475]
[1759000367876,4.49511687,3996.5,3996.4,1.20375]
[1759000368078,4.49511687,3996.5,3996.4,1.45475]
[1759000369881,4.94525687,3996.5,3996.4,1.45475]
[1759000370781,1.73745687,3996.5,3996.4,1.45475]
[1759000370987,4.94525687,3996.5,3996.4,1.45475]
[1759000371171,4.49511687,3996.5,3996.4,1.45475]
[1759000371681,4.94525687,3996.5,3996.4,1.45475]
[1759000377589,4.94525687,3996.5,3996.4,1.20375]
[1759000377789,4.94525687,3996.5,3996.4,1.45475]
[1759000384092,4.94525687,3996.5,3996.4,1.20375]
[1759000384295,4.94525687,3996.5,3996.4,1.45475]
[1759000384993,4.94525687,3996.5,3996.4,1.0046]
[1759000391997,1.73745687,3996.5,3996.4,1.0046]
[1759000392301,4.94525687,3996.5,3996.4,1.0046]
[1759000394005,4.94525687,3996.5,3996.4,0.7972]
[1759000394198,4.94525687,3996.5,3996.4,0.5844]
[1759000395803,4.94525687,3996.5,3996.4,0.3334]
[1759000396105,4.94525687,3996.5,3996.4,0.5834]
[1759000398816,1.2281,3995.9,3995.8,0.2078]
[1759000399004,0.7779,3995.6,3995.5,0.0026142]
[1759000399203,4.52721687,3995.6,3995.5,0.0026142]
[1759000399625,4.52721687,3995.6,3995.5,0.2526142]
[1759000399908,4.52721687,3995.6,3995.5,0.0026142]
[1759000402711,4.77821687,3995.6,3995.5,0.0026142]
[1759000413819,5.22845687,3995.6,3995.5,0.0026142]
[1759000414918,5.22845687,3995.6,3995.2,0.3337]
[1759000414919,0.4503,3995.0,3994.9,0.3337]
[1759000415123,4.4155,3995.0,3994.9,0.5581]
[1759000416013,4.41800627,3995.0,3994.9,0.56005113]
[1759000416213,4.41800627,3995.0,3994.9,0.00195113]
[1759000416425,5.08137639,3995.0,3994.9,0.00195113]
[1759000416628,6.53312602,3995.0,3994.9,0.00195113]
[1759000418818,0.86934,3994.7,3994.6,0.3337]
[1759000419015,1.20774,3994.7,3994.6,0.3337]
[1759000419825,1.20774,3994.7,3994.6,0.3366622]
[1759000422024,1.20774,3994.7,3994.6,0.5610622]
[1759000424127,1.74664527,3994.7,3994.6,0.5610622]
[1759000426940,1.74664527,3994.7,3994.6,1.0114122]
[1759000427430,1.74664527,3994.7,3994.6,0.0029622]
[1759000427637,3.1983949,3994.7,3994.6,0.0029622]
[1759000432529,0.53890527,3994.7,3994.6,0.7847622]
[1759000433227,0.74970527,3994.7,3994.6,0.7847622]
[1759000433832,1.28170527,3994.7,3994.6,0.7847622]
[1759000440332,1.73204527,3994.7,3994.6,0.7847622]
[1759000440543,3.1837949,3994.7,3994.6,0.2539622]
[1759000441038,3.1837949,3994.7,3994.6,0.5968622]
[1759000441240,3.1837949,3994.7,3994.6,0.3458622]
[1759000442655,3.1837949,3994.7,3994.6,0.0029622]
[1759000442840,1.18911,3994.1,3994.0,0.3429]
[1759000443045,4.93581527,3994.1,3994.0,0.3429]
[1759000443930,4.93581527,3994.1,3994.0,0.34492592]
[1759000444130,0.45046,3993.6,3993.5,0.3429]
[1759000444335,0.45046,3993.6,3992.3,2.24770739]
[1759000444336,1.45174963,3993.6,3993.4,0.2095]
[1759000444635,0.74560527,3993.5,3993.4,2.22194963]
[1759000444942,0.53890527,3993.5,3993.4,2.22194963]
[1759000445136,3.4145,3993.7,3993.6,0.7702]
[1759000445330,4.48601098,3993.7,3993.6,0.7702]
[1759000450341,4.48601098,3993.7,3993.6,0.3429]
[1759000451936,0.45046,3993.6,3993.4,0.00201916]
[1759000452143,1.30681098,3993.5,3993.4,0.00201916]
[1759000452643,1.30681098,3993.5,3993.4,0.31051916]
[1759000455444,1.39761098,3993.5,3993.4,0.00201916]
[1759000455839,1.39761098,3993.5,3993.4,0.31051916]
[1759000456645,1.39761098,3993.5,3993.4,0.00201916]
[1759000459346,1.84808098,3993.5,3993.4,0.00201916]
[1759000463747,1.84911058,3993.5,3993.4,0.00201916]
[1759000466761,1.84911058,3993.5,3993.4,0.45250916]
[1759000467551,1.84911058,3993.5,3993.4,0.77460916]
[1759000468451,1.75831058,3993.5,3993.4,0.77460916]
[1759000468651,1.75831058,3993.5,3993.4,0.32411916]
[1759000472957,4.96611058,3993.5,3993.4,0.32411916]
[1759000479971,1.75831058,3993.5,3993.4,0.32411916]
[1759000480168,4.96611058,3993.5,3993.4,0.32411916]
[1759000484474,4.96611058,3993.5,3993.4,0.77460916]
[1759000489276,5.05691058,3993.5,3993.4,0.00201916]
[1759000489675,5.05691058,3993.5,3993.4,0.32411916]
[1759000493082,1.84911058,3993.5,3993.4,0.32411916]
[1759000493278,5.05691058,3993.5,3993.4,0.32411916]
[1759000494381,5.05691058,3993.5,3993.4,0.77460916]
[1759000499007,3.96574058,3993.5,3993.4,1.20420916]
[1759000499186,0.52983893,3993.5,3993.4,8.01444462]
[1759000499381,3.2078,3994.0,3993.9,0.88003]
[1759000499582,3.2078,3994.0,3993.9,1.46693]
[1759000500086,0.4276,3994.3,3994.2,0.45039]
[1759000500279,0.7572,3994.3,3994.2,1.00449]
[1759000502390,0.7572,3994.3,3994.2,0.5541]
[1759000502578,0.45042,3994.0,3993.7,0.3359]
[1759000502778,3.965,3993.8,3993.7,0.5869]
[1759000503390,3.965,3993.8,3993.7,0.8051]
[1759000503592,3.965,3993.8,3993.7,1.25555]
[1759000503791,0.45045,3993.7,3993.5,0.3359]
[1759000504087,1.20767,3993.6,3993.4,0.00201916]
[1759000504787,1.20767,3993.6,3993.4,0.33791916]
[1759000505294,0.8662,3993.5,3993.4,0.00201916]
[1759000509193,1.1172,3993.5,3993.4,0.00201916]
[1759000511282,1.65753259,3993.5,3993.4,0.00201916]
[1759000512200,1.65753259,3993.5,3993.4,1e-08]
[1759000519302,2.10800259,3993.5,3993.4,1e-08]
[1759000526021,5.31580259,3993.5,3993.4,1e-08]
[1759000531809,2.10800259,3993.5,3993.4,1e-08]
[1759000532111,5.31580259,3993.5,3993.4,1e-08]
[1759000540614,6.76872481,3993.5,3993.4,1e-08]
[1759000541111,3.74813259,3993.5,3993.4,7.21612223]
[1759000541814,3.74813259,3993.5,3993.4,2.21612223]
[1759000542516,0.54033259,3993.5,3993.4,2.21612223]
[1759000543915,0.74933259,3993.5,3993.4,0.76320001]
[1759000544120,1.29143259,3993.5,3993.4,0.76320001]
[1759000544311,0.96993259,3993.5,3993.4,0.76320001]
[1759000544614,0.54033259,3993.5,3993.4,0.76320001]
[1759000546509,0.54033259,3993.5,3993.4,2.21612223]
[1759000546709,0.54033259,3993.5,3993.4,7.21612223]
[1759000547019,3.2078,3993.9,3993.4,7.21612223]
[1759000547020,3.2078,3993.9,3993.8,1.21364]
[1759000547208,3.2078,3993.9,3993.8,2.91756222]
[1759000547407,3.2078,3993.9,3993.8,7.91756222]
[1759000549413,3.2078,3994.3,3994.2,0.7632]
[1759000549615,3.2078,3994.3,3994.2,2.21612222]
[1759000550327,3.2078,3994.3,3994.2,2.66651222]
[1759000550731,3.2078,3994.3,3994.2,2.91751222]
[1759000551029,3.5293,3994.3,3994.2,2.91751222]
[1759000552828,3.7383,3994.3,3994.2,2.91751222]
[1759000553141,3.2078,3994.3,3994.2,2.91751222]
[1759000553428,3.5435,3994.3,3994.2,2.91751222]
[1759000554229,3.762,3994.3,3994.2,2.91751222]
[1759000556829,3.2078,3994.3,3994.2,7.91751222]
[1759000558331,3.5435,3994.3,3994.2,7.91751222]
[1759000558526,3.762,3994.3,3994.2,7.91751222]
[1759000559029,0.5542,3994.3,3994.2,7.91751222]
[1759000559625,0.7671,3994.3,3994.2,2.91751222]
[1759000561032,0.5542,3994.3,3994.2,2.91751222]
[1759000561425,3.2078,3994.6,3994.5,0.45036]
[1759000561626,3.2078,3994.6,3994.5,3.02778222]
[1759000562719,3.76450627,3995.0,3994.9,1.19692]
[1759000562926,3.76450627,3995.0,3994.9,2.90084222]
[1759000563121,3.21030627,3995.0,3994.9,2.90084222]
[1759000563529,3.4263,3995.5,3995.4,0.88836]
[1759000563829,3.2078,3995.5,3995.4,2.90078222]
[1759000564330,3.4263,3995.5,3995.4,2.90078222]
[1759000564531,3.76398998,3995.5,3995.4,2.90078222]
[1759000568627,3.20978998,3995.5,3995.4,2.90078222]
[1759000569030,3.20978998,3995.5,3995.4,7.90078222]
[1759000569442,3.97818998,3995.5,3995.4,2.90078222]
[1759000569934,4.10288998,3995.5,3995.4,2.90078222]
[1759000571223,4.10288998,3995.5,3995.4,2.12748222]
[1759000571433,4.10288998,3995.5,3995.4,2.37848222]
[1759000571638,0.4485,3995.2,3995.1,1.90321222]
[1759000571931,0.7684,3995.2,3995.1,2.43541222]
[1759000572130,0.3199,3995.4,3995.3,0.5322]
[1759000572425,0.7684,3995.4,3995.3,0.7832]
[1759000575037,0.7684,3995.4,3995.3,1.0043]
[1759000575234,3.20978998,3995.5,3995.4,0.45026]
[1759000575438,3.20978998,3995.5,3995.4,2.65648222]
[1759000576132,0.32188998,3995.5,3995.4,2.65648222]
[1759000576438,0.54878998,3995.5,3995.4,2.65648222]
[1759000578040,0.22888998,3995.5,3995.4,2.65648222]
[1759000578340,0.54878998,3995.5,3995.4,2.65648222]
[1759000579340,0.77038998,3995.5,3995.4,2.65648222]
[1759000580540,0.54878998,3995.5,3995.4,2.65648222]
[1759000582234,0.00198998,3995.5,3995.4,2.65648222]
[1759000582438,0.00198998,3995.5,3995.4,7.90748222]
[1759000583534,0.00198998,3995.5,3995.4,7.65648222]
[1759000583739,0.00198998,3995.5,3995.4,7.90748222]
[1759000584538,0.00198998,3995.5,3995.4,11.11528222]
[1759000591244,3.7303,3996.3,3996.2,1.19997]
[1759000591539,3.74430618,3996.3,3996.2,2.90389222]
[1759000591842,4.06070618,3996.3,3996.2,2.90389222]
[1759000592043,4.26680618,3996.3,3996.2,2.90389222]
[1759000592248,4.26994204,3996.3,3996.2,2.90566264]
[1759000592930,4.27013717,3996.3,3996.2,2.90566264]
[1759000596237,4.49103717,3996.3,3996.2,2.90566264]
[1759000596437,4.49103717,3996.3,3996.2,1.45274042]
[1759000596743,4.49103717,3996.3,3996.2,0.91194042]
[1759000597137,1.28323717,3996.3,3996.2,0.91194042]
[1759000599545,1.28323717,3996.3,3996.2,0.70294042]
[1759000600046,1.28323717,3996.3,3996.2,0.91194042]
[1759000600647,1.28323717,3996.3,3996.2,1.22554042]
[1759000602049,1.28323717,3996.3,3996.2,0.91194042]
[1759000602748,1.28323717,3996.3,3996.2,0.66094042]
[1759000602949,1.28323717,3996.3,3996.2,0.91194042]
[1759000608549,1.28339033,3996.3,3996.2,1.22554042]
[1759000609651,1.28339033,3996.3,3996.2,1.45274042]
[1759000610267,1.28339033,3996.3,3996.2,1.00257042]
[1759000612049,1.28339033,3996.3,3996.2,1.45274042]
[1759000612250,1.73355033,3996.3,3996.2,1.45274042]
[1759000612646,1.73355033,3996.3,3996.2,1.00257042]
[1759000612849,1.73355033,3996.3,3996.2,1.45274042]
[1759000613951,1.28339033,3996.3,3996.2,1.45274042]
[1759000618755,1.73355033,3996.3,3996.2,1.00257042]
[1759000619451,1.73355033,3996.3,3996.2,0.00177042]
[1759000619661,4.94135033,3996.3,3996.2,0.25277042]
[1759000620456,4.94135033,3996.3,3996.2,0.00177042]
[1759000620668,4.94135033,3996.3,3996.2,0.25277042]
[1759000621855,4.94214199,3996.3,3996.2,0.25277042]
[1759000624059,4.94214199,3996.3,3996.2,0.00177042]
[1759000624259,4.94214199,3996.3,3996.2,0.25277042]
[1759000624655,4.94214199,3996.3,3996.2,0.00177042]
[1759000624859,4.94214199,3996.3,3996.2,0.25277042]
[1759000627657,4.94214199,3996.3,3996.2,0.00177042]
[1759000627855,9.94214199,3996.3,3996.2,0.00177042]
[1759000630163,9.94214199,3996.3,3995.3,2.7976358]
[1759000630164,0.7344,3995.4,3995.3,2.7976358]
[1759000630357,0.7344,3995.4,3995.3,3.0995358]
[1759000630551,3.4163,3995.8,3995.7,0.7638]
[1759000630753,3.95337489,3995.8,3995.7,0.7638]
[1759000630958,4.16947489,3995.8,3995.7,0.7638]
[1759000631263,4.47927489,3995.8,3995.7,0.76563275]
[1759000632468,4.47927489,3995.8,3995.7,0.22603275]
[1759000633553,4.47927489,3995.8,3995.7,0.54173275]
[1759000635460,4.47927489,3995.8,3995.7,0.76563275]
[1759000636766,4.47927489,3995.8,3995.7,1.46686275]
[1759000640668,4.47927489,3995.8,3995.7,1.21586275]
[1759000640875,4.47927489,3995.8,3995.7,1.46686275]
[1759000644484,4.47927489,3995.8,3995.7,1.21586275]
[1759000644778,4.47927489,3995.8,3995.7,1.46686275]
[1759000660897,10.92998252,3995.8,3994.9,3.2078]
[1759000661092,0.7801,3995.0,3994.9,1.20102]
[1759000661285,1.31717489,3995.0,3994.9,1.45202]
[1759000661690,1.44217489,3995.0,3994.9,1.45202]
[1759000661884,1.44217489,3995.0,3994.9,1.45448566]
[1759000663198,1.44217489,3995.0,3994.9,1.20348566]
[1759000663393,1.44217489,3995.0,3994.9,1.45448566]
[1759000665100,1.44217489,3995.0,3994.9,1.20348566]
[1759000665299,1.44217489,3995.0,3994.9,1.45448566]
[1759000665804,1.44217489,3995.0,3994.9,1.20348566]
[1759000665999,1.44217489,3995.0,3994.9,1.45448566]
[1759000666299,0.9051,3995.0,3994.9,1.45448566]
[1759000671002,0.9051,3995.0,3994.9,1.20348566]
[1759000671298,0.9051,3995.0,3994.9,1.45448566]
[1759000674699,0.7801,3995.0,3994.9,1.45448566]
[1759000674889,3.417,3995.4,3995.3,1.19837]
[1759000675096,3.95477572,3995.4,3995.3,2.90007763]
[1759000675696,4.26937572,3995.4,3995.3,2.90007763]
[1759000678806,4.49567572,3995.4,3995.3,2.90007763]
[1759000681500,4.49567572,3995.4,3995.3,2.64907763]
[1759000681703,4.49567572,3995.4,3995.3,2.90007763]
[1759000686308,4.49567572,3995.4,3995.3,2.64907763]
[1759000686503,4.49567572,3995.4,3995.3,2.90007763]
[1759000686698,4.49567572,3995.4,3995.3,2.64907763]
[1759000686903,4.49567572,3995.4,3995.3,2.90007763]
[1759000696716,4.94593572,3995.4,3995.3,2.90007763]
[1759000697418,4.94593572,3995.4,3995.3,2.44980763]
[1759000698620,4.94593572,3995.4,3995.3,2.90007763]
[1759000699123,4.94593572,3995.4,3995.3,2.44980763]
[1759000702820,1.73813572,3995.4,3995.3,2.44980763]
[1759000717743,0.0854,3995.9,3995.8,0.45021]
[1759000718049,3.6396,3996.6,3996.5,0.8928]
[1759000718248,3.6396,3996.6,3996.5,1.1438]
[1759000718437,3.6396,3996.6,3996.5,1.59394]
[1759000719038,3.64223776,3996.6,3996.5,1.59394]
[1759000719244,0.43443776,3996.6,3996.5,1.59394]
[1759000724840,0.21643776,3996.6,3996.5,1.59394]
[1759000725944,0.00263776,3996.6,3996.5,1.59394]
[1759000726744,0.00263776,3996.6,3996.5,1.79663981]
[1759000726946,0.00263776,3996.6,3996.5,1.59394]
[1759000745161,0.00263776,3996.6,3996.5,1.34294]
[1759000745361,0.00263776,3996.6,3996.5,1.59394]
[1759000750662,3.4288,3997.7,3997.6,0.7494]
[1759000750863,3.95019436,3997.7,3997.6,1.0004]
[1759000751666,3.95299137,3997.7,3997.6,1.45041]
[1759000752161,3.73199137,3997.7,3997.6,1.45041]
[1759000752362,0.52419137,3997.7,3997.6,1.45041]
[1759000752573,0.00279701,3997.7,3997.6,1.45041]
[1759000753267,0.00279701,3997.7,3997.6,4.65821]
[1759000764068,3.2078,3998.6,3998.5,0.44991]
[1759000764275,0.217,3998.9,3998.8,1.20067]
[1759000764473,0.73684034,3998.9,3998.8,1.45167]
[1759000765071,0.73996065,3998.9,3998.8,1.45383472]
[1759000765574,0.22012031,3998.9,3998.8,1.45383472]
[1759000767381,0.43102031,3998.9,3998.8,1.45383472]
[1759000769275,0.66172031,3998.9,3998.8,1.20283472]
[1759000769468,0.66172031,3998.9,3998.8,1.23903472]
[1759000769778,0.66172031,3998.9,3998.8,0.78916472]
[1759000770675,0.66172031,3998.9,3998.8,0.31776472]
[1759000770881,1.18103927,3998.9,3998.8,0.25316472]
[1759000775282,1.18103927,3998.9,3998.8,0.56876472]
[1759000775485,2.9880359,3998.9,3998.8,0.31776472]
[1759000779390,3.4379059,3998.9,3998.8,0.31776472]
[1759000779896,3.4379059,3998.9,3998.8,0.53816472]
[1759000781589,1.63090927,3998.9,3998.8,0.53816472]
[1759000782792,3.07987187,3998.9,3998.8,0.53816472]
[1759000787696,3.07987187,3998.9,3998.8,0.31776472]
[1759000794326,3.07987187,3998.9,3998.8,0.00216472]
[1759000794704,3.07987187,3998.9,3998.0,0.1313]
[1759000794705,1.11703,3998.3,3998.2,0.3276]
[1759000795000,3.08531156,3998.3,3998.2,0.3276]
[1759000795704,3.08531156,3998.3,3998.2,0.32947892]
[1759000798810,6.29311156,3998.3,3998.2,0.32947892]
[1759000799017,0.51931896,3998.3,3998.2,2.45874152]
[1759000799312,3.2078,3998.7,3998.5,0.8848]
[1759000799513,0.52129893,3998.6,3998.5,2.3337626]
[1759000799914,0.52129893,3998.6,3998.5,2.7836726]
[1759000801606,0.52129893,3998.6,3998.5,3.0346726]
[1759000804016,0.74049893,3998.6,3998.5,3.0346726]
[1759000809217,0.74049893,3998.6,3998.5,2.7836726]
[1759000809418,0.74049893,3998.6,3998.5,3.0346726]
[1759000809720,0.74049893,3998.6,3998.5,2.7836726]
[1759000809913,0.74049893,3998.6,3998.5,3.0346726]
[1759000812325,0.74051467,3998.6,3998.5,3.0346726]
[1759000813922,0.74051467,3998.6,3998.5,1.58571]
[1759000816526,0.52131467,3998.6,3998.5,1.58571]
[1759000820330,0.97121467,3998.6,3998.5,1.58571]
[1759000820832,0.97121467,3998.6,3998.5,1.33471]
[1759000821031,0.97121467,3998.6,3998.5,1.1358]
[1759000827539,1.17811467,3998.6,3998.5,1.1358]
[1759000832239,0.97121467,3998.6,3998.5,1.58571]
[1759000833845,0.52131467,3998.6,3998.5,1.58571]
[1759000834844,0.97121467,3998.6,3998.5,1.58571]
[1759000835039,0.97121467,3998.6,3998.5,1.1358]
[1759000835242,0.97121467,3998.6,3998.5,1.58571]
[1759000845347,0.97121467,3998.6,3998.5,1.1358]
[1759000845543,1.17811467,3998.6,3998.5,1.1358]
[1759000846246,1.17811467,3998.6,3998.5,1.58571]
[1759000846949,1.17811467,3998.6,3998.5,1.1358]
[1759000847749,1.17811467,3998.6,3998.5,1.58571]
[1759000849452,1.17811467,3998.6,3998.5,1.1358]
[1759000850253,1.17811467,3998.6,3998.5,1.58571]
[1759000853659,1.17811467,3998.6,3998.5,1.1358]